bitfinex/quotes_ETHUSD_20240718
["timestamp","ask_amount","ask_price","bid_price","bid_amount"]
[1721317921951,2.2817,3401.8,3400.9,0.1477146]
[1721317921952,8.49164551,3401.8,3401.7,0.06993734]
[1721317922149,2.93973,3401.7,3401.0,2.9403]
[1721317922401,2.9398,3401.6,3401.0,2.9403]
[1721317922552,2.9398,3401.6,3401.1,0.07033744]
[1721317922910,2.9398,3401.6,3401.0,2.9403]
[1721317923066,2.9398,3401.6,3401.2,0.07028453]
[1721317923267,3.16240551,3401.8,3401.2,2.94012]
[1721317923479,0.55,3401.7,3401.3,0.07023162]
[1721317923797,2.2817,3401.8,3401.5,2.93981]
[1721317924000,2.2817,3401.8,3401.5,2.93982]
[1721317924306,2.2817,3401.8,3401.6,0.07009101]
[1721317925358,2.2817,3401.8,3401.3,2.93999]
[1721317925789,2.2817,3401.8,3401.4,2.93994]
[1721317925990,2.2817,3401.8,3401.5,2.93987]
[1721317926299,2.2817,3401.8,3401.6,0.07007809]
[1721317926875,2.2817,3401.8,3401.6,2.93973]
[1721317927063,7.28,3402.1,3401.6,2.93973]
[1721317927267,7.28,3402.1,3401.7,0.07002519]
[1721317927696,7.28,3402.1,3401.7,0.66499271]
[1721317927902,7.28,3402.1,3402.0,5.87888]
[1721317928114,2.334,3402.6,3402.2,2.93926]
[1721317928759,2.334,3402.6,3401.3,3.0]
[1721317928760,5.27292,3402.6,3402.3,0.06960318]
[1721317928961,2.334,3402.6,3402.3,0.06960318]
[1721317929161,2.334,3402.6,3401.8,2.93959]
[1721317929358,2.334,3402.6,3401.2,2.94008]
[1721317929359,6.23436,3402.6,3401.2,2.94008]
[1721317929564,5.30734,3402.0,3401.9,0.06975915]
[1721317929801,2.93954,3401.9,3401.2,2.94008]
[1721317930104,2.93954,3401.9,3401.3,0.07007653]
[1721317930469,2.93967,3401.8,3401.2,2.94008]
[1721317930668,2.93967,3401.8,3400.9,3.0880746]
[1721317930669,2.93996,3401.4,3401.3,0.07010753]
[1721317930974,0.55,3401.7,3400.9,0.1477146]
[1721317930975,2.93985,3401.6,3400.9,0.1477146]
[1721317931176,3.0,3401.7,3401.3,0.07010753]
[1721317931381,3.0,3401.8,3401.1,2.94015]
[1721317931563,3.0,3401.8,3401.2,2.94013]
[1721317931802,2.3679,3402.0,3401.3,0.588028]
[1721317932025,2.93958,3401.9,3401.0,2.94027]
[1721317932238,2.93979,3401.6,3401.1,0.07029217]
[1721317932443,2.93968,3401.8,3401.1,2.94022]
[1721317932624,2.93968,3401.8,3401.2,0.07023926]
[1721317933141,2.93971,3401.7,3401.2,0.07023926]
[1721317933345,2.93979,3401.6,3401.2,0.07023926]
[1721317933646,2.93979,3401.6,3401.0,2.9403]
[1721317933813,2.93979,3401.6,3401.1,0.07029734]
[1721317934019,2.93979,3401.6,3401.0,2.9403]
[1721317934214,2.94011,3401.3,3401.1,0.07029734]
[1721317934423,2.4075,3401.2,3400.9,0.1477146]
[1721317934628,2.4075,3401.2,3401.0,0.07035026]
[1721317935920,2.4075,3401.2,3400.9,0.1477146]
[1721317936119,2.4075,3401.2,3401.1,0.07029734]
[1721317936304,2.4075,3401.2,3401.0,0.07035026]
[1721317936646,2.4075,3401.2,3400.9,0.1477146]
[1721317936647,2.4075,3401.2,3401.1,0.07029734]
[1721317936845,2.93992,3401.5,3400.9,0.1477146]
[1721317937008,3.48998,3401.4,3401.0,0.07035026]
[1721317937530,2.2903,3401.6,3401.1,2.94014]
[1721317937702,2.2903,3401.6,3401.1,2.9402]
[1721317937908,2.2903,3401.6,3401.2,0.07024443]
[1721317938350,2.2903,3401.6,3401.3,2.94002]
[1721317938641,2.2903,3401.6,3401.4,0.07022006]
[1721317939724,5.3563,3402.0,3401.4,0.07022006]
[1721317939926,3.48953,3401.9,3401.4,0.07022006]
[1721317940128,3.48953,3401.9,3401.2,2.94007]
[1721317940362,2.93971,3401.7,3401.5,0.07016715]
[1721317940562,2.93979,3401.6,3400.9,6.0283946]
[1721317940763,2.93995,3401.5,3400.9,0.1477146]
[1721317940970,2.3563,3401.3,3401.0,0.07043169]
[1721317941132,2.3563,3401.3,3400.9,0.1477146]
[1721317941773,2.3563,3401.3,3401.0,0.07043169]
[1721317941977,2.93988,3401.5,3401.0,0.07043169]
[1721317942176,0.55,3401.4,3401.0,0.07043169]
[1721317942331,2.9401,3401.3,3401.0,0.07043169]
[1721317942855,2.94019,3401.2,3401.0,0.07043169]
[1721317943032,0.55,3401.4,3401.0,0.07043169]
[1721317943232,2.94022,3401.1,3401.0,0.07043169]
[1721317943459,3.49022,3401.1,3401.0,0.07043169]
[1721317945134,0.55,3401.1,3401.0,0.07043169]
[1721317945354,0.30581475,3401.3,3400.9,0.1477146]
[1721317945556,0.30581475,3401.3,3401.0,0.07050667]
[1721317945557,2.9401,3401.3,3401.0,0.07050667]
[1721317945867,2.9401,3401.3,3400.9,0.1477146]
[1721317946081,2.94013,3401.2,3400.9,0.1477146]
[1721317946362,2.9401,3401.3,3401.0,0.07050667]
[1721317946363,2.94027,3401.1,3401.0,0.07050667]
[1721317946936,5.25687,3401.1,3401.0,0.07050667]
[1721317947137,5.80687,3401.1,3401.0,0.07050667]
[1721317950254,8.74716,3401.1,3401.0,0.07050667]
[1721317950437,5.88062,3401.0,3400.9,0.1477146]
[1721317950638,4.659035,3401.0,3400.9,0.1477146]
[1721317950941,3.49031,3401.0,3400.9,0.1477146]
[1721317951274,5.3166,3401.1,3400.9,0.1477146]
[1721317951275,8.25687,3401.1,3400.9,0.1477146]
[1721317951431,8.25687,3401.1,3401.0,0.07058809]
[1721317951631,8.80682,3401.1,3401.0,0.07058809]
[1721317952057,5.8666,3401.1,3401.0,0.07058809]
[1721317952277,3.55,3401.1,3400.9,0.1477146]
[1721317952576,3.55,3401.1,3401.0,0.07058809]
[1721317952775,3.49022,3401.1,3401.0,0.07058809]
[1721317953488,3.49022,3401.1,3400.9,0.1477146]
[1721317953839,0.55,3401.1,3401.0,0.07058809]
[1721317954180,2.94022,3401.1,3401.0,0.07058809]
[1721317954385,3.49022,3401.1,3401.0,0.07058809]
[1721317954981,0.55,3401.1,3401.0,0.07058809]
[1721317955193,2.94013,3401.3,3401.0,0.07058809]
[1721317955194,0.55,3401.2,3401.0,0.07058809]
[1721317955373,2.262,3401.5,3401.0,0.07058809]
[1721317955540,3.49002,3401.4,3401.0,0.07058809]
[1721317955742,3.49002,3401.4,3400.9,0.1477146]
[1721317956064,2.9402,3401.2,3400.9,0.1477146]
[1721317956263,2.94031,3401.0,3400.9,0.1477146]
[1721317956458,2.94031,3401.0,3400.9,0.21835561]
[1721317957560,2.94031,3401.0,3400.9,0.1477146]
[1721317958596,6.43062,3401.0,3400.9,0.1477146]
[1721317958885,7.073682,3401.0,3400.9,0.1477146]
[1721317959099,10.71972169,3401.0,3400.9,0.1477146]
[1721317959257,9.8275605,3401.0,3400.9,0.1477146]
[1721317959641,12.7678705,3401.0,3400.9,0.1477146]
[1721317959847,14.28490722,3401.0,3400.9,0.1477146]
[1721317960594,15.7678705,3401.0,3400.9,0.1477146]
[1721317960752,17.28444209,3401.0,3400.9,0.1477146]
[1721317960955,15.7678705,3401.0,3400.9,0.1477146]
[1721317961974,18.7081805,3401.0,3400.9,4.6e-06]
[1721317963382,21.6484905,3401.0,3400.9,4.6e-06]
[1721317963752,18.7081805,3401.0,3400.9,4.6e-06]
[1721317963948,15.7678705,3401.0,3400.9,4.6e-06]
[1721317964281,18.7081805,3401.0,3400.9,4.6e-06]
[1721317965002,21.6484905,3401.0,3400.9,4.6e-06]
[1721317965158,22.01762895,3401.0,3400.9,4.6e-06]
[1721317966390,24.13700002,3401.0,3400.9,4.6e-06]
[1721317966915,8.823,3400.2,3400.1,0.016845]
[1721317967202,2.94221,3398.8,3398.7,0.005]
[1721317967411,2.94187,3399.2,3398.7,0.005]
[1721317967613,7.28,3399.3,3398.7,0.299746]
[1721317967766,7.28,3399.3,3398.7,3.242036]
[1721317968166,10.22178,3399.3,3398.7,3.242036]
[1721317968406,2.94188,3399.2,3398.7,0.299746]
[1721317968904,2.544,3398.9,3398.0,0.007519]
[1721317969416,5.88564,3398.1,3398.0,0.007519]
[1721317969723,2.94282,3398.1,3398.0,0.007519]
[1721317969864,3.49282,3398.1,3398.0,0.007519]
[1721317970506,7.079196,3398.1,3398.0,0.007519]
[1721317970720,10.079196,3398.1,3398.0,0.007519]
[1721317970883,14.942296,3398.1,3398.0,0.007519]
[1721317971083,20.827936,3398.1,3398.0,9e-06]
[1721317971303,31.050756,3398.1,3398.0,9e-06]
[1721317971766,2.94432,3396.4,3395.0,0.0989]
[1721317971972,2.94464,3396.0,3395.9,0.0144608]
[1721317972180,2.94464,3396.0,3395.0,0.0989]
[1721317972181,2.94542,3395.1,3395.0,0.0989]
[1721317972389,8.74462375,3395.1,3395.0,0.0989]
[1721317972669,12.29462375,3395.1,3395.0,0.0989]
[1721317972924,12.29462375,3395.1,3393.3,0.0532774]
[1721317972925,5.8924,3394.2,3393.3,0.0532774]
[1721317973072,6.4424,3394.2,3393.3,0.0532774]
[1721317973982,2.3641,3394.6,3393.9,2.94645]
[1721317974206,2.94477,3395.9,3393.3,0.0532774]
[1721317974207,3.0,3395.1,3393.3,0.0532774]
[1721317974527,0.55,3395.0,3393.3,0.0532774]
[1721317974687,0.55,3395.0,3394.7,2.94574]
[1721317974884,3.55,3395.3,3394.8,0.07237085]
[1721317975085,3.404,3395.9,3394.8,0.07237085]
[1721317975086,2.94464,3396.0,3394.8,0.07237085]
[1721317975287,3.484974,3395.9,3395.1,2.9454]
[1721317975602,3.484944,3395.9,3395.2,0.07215844]
[1721317975905,2.94482,3395.8,3395.2,0.07215844]
[1721317976608,2.9449,3395.7,3395.2,0.07215844]
[1721317977021,0.55,3395.6,3394.9,2.94555]
[1721317977181,0.55,3395.6,3395.3,0.07210535]
[1721317977383,0.55,3395.6,3395.0,2.94549]
[1721317977593,0.55,3395.6,3395.4,0.07205225]
[1721317977805,0.55,3395.7,3395.0,2.94547]
[1721317978118,2.94498,3395.6,3394.8,2.94565]
[1721317978319,0.55,3395.7,3394.9,0.07231774]
[1721317978320,0.55,3395.5,3394.9,0.07231774]
[1721317978531,2.94517,3395.4,3394.6,2.94578]
[1721317978672,1.2479664,3395.7,3395.0,0.07226464]
[1721317978673,0.55,3395.3,3395.0,0.07226464]
[1721317978999,2.9452,3395.4,3394.3,2.9461]
[1721317979204,3.4952,3395.4,3394.6,2.94584]
[1721317979515,0.55,3395.4,3394.8,2.94564]
[1721317979897,0.55,3395.4,3394.6,2.94581]
[1721317980096,2.94543,3395.1,3394.7,0.07314811]
[1721317980299,2.94543,3395.1,3394.4,3.25539146]
[1721317980300,0.55,3395.4,3394.6,2.94584]
[1721317980505,0.55,3395.4,3394.8,2.94561]
[1721317980683,0.55,3395.4,3394.9,0.07304189]
[1721317980885,0.55,3395.4,3394.7,2.94574]
[1721317981103,7.58610044,3395.5,3394.8,3.018765]
[1721317981269,7.28,3395.5,3394.9,2.94555]
[1721317981474,7.28,3395.5,3395.0,2.94548]
[1721317981708,2.9449,3395.7,3395.0,3.01846879]
[1721317981917,0.55,3395.6,3395.0,0.07298879]
[1721317982125,0.55,3395.6,3394.5,2.94585]
[1721317982126,2.94539,3395.2,3394.5,2.94585]
[1721317982284,2.94568,3394.8,3394.6,0.0735434]
[1721317982625,3.404,3395.5,3394.1,0.1477146]
[1721317982626,2.94596,3394.5,3394.1,0.1477146]
[1721317983005,3.49603,3394.4,3394.1,0.1477146]
[1721317983177,2.94605,3394.4,3394.1,0.1477146]
[1721317983523,0.55,3394.3,3394.1,0.1477146]
[1721317983980,0.349588,3394.3,3394.1,0.1477146]
[1721317984181,5.7888,3395.0,3394.1,0.1477146]
[1721317984182,0.55,3394.2,3394.1,0.1477146]
[1721317984406,6.4424,3394.2,3394.1,0.1477146]
[1721317985123,11.845,3394.2,3394.1,0.1477146]
[1721317985297,14.7912,3394.2,3394.1,0.1477146]
[1721317985834,11.845,3394.2,3394.1,0.1477146]
[1721317985981,13.664516,3394.2,3394.1,0.1477146]
[1721317986181,2.94689,3393.4,3393.3,0.0532774]
[1721317986614,3.49689,3393.4,3393.3,0.0532774]
[1721317986780,6.44378,3393.4,3393.3,0.0532774]
[1721317986981,15.79467,3393.4,3393.3,0.0532774]
[1721317987227,10.75279058,3393.4,3393.3,0.0532774]
[1721317987535,6.44378,3393.4,3393.3,0.0532774]
[1721317987901,3.55,3393.4,3390.7,0.1477146]
[1721317988253,2.94797,3392.2,3391.0,2.94897]
[1721317988431,2.94821,3391.9,3391.0,2.94897]
[1721317988585,3.0,3392.4,3391.2,2.9488]
[1721317988916,2.359,3392.9,3391.6,2.94844]
[1721317989120,13.62162056,3393.5,3392.3,2.94779]
[1721317989121,7.28,3393.5,3392.3,2.94779]
[1721317989304,7.28,3393.5,3392.7,2.94747]
[1721317989505,7.28,3393.5,3393.1,2.94714]
[1721317989706,12.045736,3394.2,3393.3,2.9469]
[1721317989907,12.045736,3394.2,3393.4,0.07210293]
[1721317989908,0.64164063,3394.1,3393.4,0.07210293]
[1721317990081,2.94648,3393.9,3392.6,2.94756]
[1721317990277,2.94679,3393.6,3392.7,0.07247508]
[1721317990478,7.92164063,3394.1,3392.7,0.07247508]
[1721317990680,7.92164063,3394.1,3391.8,2.94827]
[1721317990681,2.94732,3393.0,3391.8,2.94827]
[1721317990880,7.92164063,3394.1,3391.4,3.0]
[1721317990881,2.94735,3392.9,3391.9,3.31589757]
[1721317991195,2.94716,3393.1,3392.2,2.94792]
[1721317991407,10.227,3393.3,3392.3,2.94782]
[1721317991605,7.28,3393.3,3392.3,0.0726878]
[1721317991922,19.64,3393.7,3391.9,0.35377608]
[1721317992140,7.28,3393.7,3392.7,2.94749]
[1721317992292,2.94664,3393.7,3392.8,0.0724219]
[1721317992498,2.9468,3393.6,3392.8,0.0724219]
[1721317992799,2.94663,3393.7,3392.8,0.0724219]
[1721317993002,2.94675,3393.6,3392.8,0.0724219]
[1721317993210,2.94733,3392.9,3392.8,0.0724219]
[1721317993433,5.89466,3392.9,3392.8,0.0724219]
[1721317993593,5.89466,3392.9,3392.7,0.148]
[1721317993594,2.94741,3392.8,3392.7,0.148]
[1721317994196,5.89482,3392.8,3392.7,0.148]
[1721317994898,12.39223,3392.8,3392.7,0.148]
[1721317995106,10.927633,3392.8,3392.7,0.148]
[1721317995305,10.377633,3392.8,3392.7,0.148]
[1721317995511,7.377633,3392.8,3392.7,0.148]
[1721317996041,4.430223,3392.8,3392.7,0.148]
[1721317996262,2.94741,3392.8,3392.7,0.148]
[1721317996740,8.84223,3392.8,3392.7,0.148]
[1721317996937,9.39223,3392.8,3392.7,0.148]
[1721317997295,12.39223,3392.8,3392.7,0.148]
[1721317997527,15.33964,3392.8,3392.7,0.148]
[1721317997737,17.117194,3392.8,3392.7,0.148]
[1721317998355,2.487,3392.7,3390.7,3.0968846]
[1721317998638,2.94828,3391.8,3391.0,2.94896]
[1721317998848,6.037,3392.7,3391.0,0.60458446]
[1721317999058,2.487,3392.7,3391.9,2.94813]
[1721317999206,2.94759,3392.6,3390.9,2.94901]
[1721317999407,2.94768,3392.5,3390.7,0.1477146]
[1721317999618,2.94793,3392.3,3391.4,2.94855]
[1721317999931,2.94768,3392.5,3391.6,2.94845]
[1721318000251,10.2274,3392.9,3392.1,2.94796]
[1721318000414,2.9475,3392.7,3392.0,2.9481]
[1721318000619,2.94748,3392.8,3392.2,0.07166643]
[1721318000826,2.94751,3392.7,3392.1,0.07171962]
[1721318001027,2.94782,3392.4,3391.7,2.94832]
[1721318001228,2.94782,3392.4,3392.2,0.07166643]
[1721318001427,2.94782,3392.4,3391.7,2.94832]
[1721318001652,2.94782,3392.4,3392.3,0.07161324]
[1721318001831,2.94769,3392.5,3391.7,2.94832]
[1721318002020,2.94769,3392.5,3391.8,0.6191635]
[1721318002217,2.94769,3392.5,3391.8,0.69098944]
[1721318002418,2.94813,3392.0,3391.8,0.07182594]
[1721318002753,2.9482,3391.9,3391.2,2.9488]
[1721318002957,2.94827,3391.9,3391.1,2.94888]
[1721318003271,2.94827,3391.9,3390.7,0.1477146]
[1721318003272,2.94852,3391.6,3391.3,0.07213357]
[1721318003555,2.94872,3391.3,3390.7,0.1477146]
[1721318003913,2.94872,3391.3,3390.7,0.45742106]
[1721318004159,2.94905,3391.0,3390.7,0.1477146]
[1721318004360,2.9486,3391.5,3390.7,0.1477146]
[1721318004664,2.487,3392.3,3390.8,2.94915]
[1721318004826,2.94826,3391.9,3390.8,2.94915]
[1721318005027,2.94853,3391.6,3390.7,0.1477146]
[1721318005238,2.94852,3391.6,3390.7,3.0969446]
[1721318005440,5.487,3392.3,3390.7,0.1477146]
[1721318005650,0.55,3392.2,3390.7,0.1477146]
[1721318005866,2.94905,3391.0,3390.7,0.1477146]
[1721318006014,5.89773,3391.2,3390.7,0.1477146]
[1721318006217,3.0,3391.8,3390.7,0.1477146]
[1721318006218,2.94909,3390.9,3390.7,0.1477146]
[1721318006557,6.193209,3390.8,3390.7,0.1477146]
[1721318006967,3.244059,3390.8,3390.7,0.1477146]
[1721318007191,2.94915,3390.8,3390.7,0.1477146]
[1721318008090,2.94829,3391.8,3390.7,0.1477146]
[1721318008403,7.28,3391.9,3391.2,2.94877]
[1721318008749,7.28,3391.9,3391.3,2.94871]
[1721318008951,7.28,3391.9,3391.2,2.94872]
[1721318009145,7.28,3391.9,3391.2,0.589767]
[1721318009377,7.28,3392.5,3392.0,2.94806]
[1721318009573,2.9472,3393.1,3392.0,2.94806]
[1721318009745,2.9474,3392.9,3392.0,2.94806]
[1721318009956,9.5817,3393.2,3392.1,0.07179242]
[1721318010157,9.5817,3393.2,3391.2,2.3833]
[1721318010356,7.28,3393.2,3392.3,2.94778]
[1721318010556,2.94699,3393.3,3392.4,2.94771]
[1721318010883,12.654675,3393.6,3391.4,2.94862]
[1721318010884,2.94784,3392.4,3391.4,2.94862]
[1721318011191,2.94682,3393.5,3390.7,0.1477146]
[1721318011192,2.3326,3392.7,3390.7,0.1477146]
[1721318011497,2.94792,3392.3,3390.7,0.1477146]
[1721318011792,2.94842,3391.7,3390.7,0.1477146]
[1721318011995,10.22806,3392.1,3390.7,0.1477146]
[1721318012202,2.9482,3391.9,3390.7,0.1477146]
[1721318012486,2.94903,3391.0,3390.7,0.1477146]
[1721318012700,2.94865,3391.4,3390.7,0.1477146]
[1721318012863,2.94887,3391.2,3390.7,0.1477146]
[1721318013048,0.294865,3391.3,3390.7,0.1477146]
[1721318013251,3.0,3391.8,3390.7,0.1477146]
[1721318013480,2.94828,3391.8,3390.7,0.1477146]
[1721318013803,2.94828,3391.8,3390.8,2.94915]
[1721318013956,2.94839,3391.7,3390.7,3.0969446]
[1721318014303,2.9482,3391.9,3390.8,2.94914]
[1721318014457,10.22804,3392.1,3391.2,2.9488]
[1721318014458,7.28,3392.1,3391.2,2.9488]
[1721318014650,2.94768,3392.5,3391.3,2.94869]
[1721318014850,7.28,3392.6,3391.0,2.94897]
[1721318015196,7.28,3392.6,3390.9,0.30968546]
[1721318015197,7.28,3392.6,3392.0,2.9481]
[1721318015489,2.94718,3393.1,3392.2,2.94791]
[1721318015490,2.94716,3393.1,3392.2,2.94791]
[1721318015690,2.258716,3393.0,3392.1,2.94802]
[1721318015891,2.258716,3393.0,3391.9,2.94817]
[1721318016066,19.64,3393.2,3392.4,2.94768]
[1721318016271,22.58707,3393.2,3392.3,2.94783]
[1721318016652,22.58707,3393.2,3392.4,0.07155616]
[1721318016952,2.94749,3392.8,3391.9,2.94819]
[1721318017164,19.64,3393.2,3392.0,0.07176892]
[1721318017165,2.94758,3392.7,3392.0,0.07176892]
[1721318017490,3.242358,3392.6,3391.5,2.94847]
[1721318017700,3.242358,3392.6,3392.1,0.07171572]
[1721318017701,2.94768,3392.5,3392.1,0.07171572]
[1721318018001,2.94795,3392.2,3391.2,2.9488]
[1721318018211,2.94795,3392.2,3390.9,0.30968546]
[1721318018520,2.94795,3392.2,3391.1,2.94888]
[1721318018660,2.94795,3392.2,3391.2,2.9488]
[1721318018855,2.94795,3392.2,3391.0,2.94897]
[1721318018856,2.94818,3392.0,3391.0,2.94897]
[1721318019087,2.94818,3392.0,3390.9,0.30968546]
[1721318019088,2.9482,3391.9,3391.1,2.94888]
[1721318019287,2.94811,3392.0,3391.2,2.9488]
[1721318019496,0.589572,3392.1,3390.9,0.30968546]
[1721318019711,7.28,3392.6,3391.0,0.05897168]
[1721318019854,7.28,3392.6,3392.0,2.94806]
[1721318020059,7.28,3392.6,3391.8,2.94827]
[1721318020060,2.94742,3392.8,3391.8,2.94822]
[1721318020287,2.94742,3392.8,3390.5,2.94933]
[1721318020288,7.28,3393.2,3390.5,2.94933]
[1721318020591,2.94765,3392.6,3391.6,2.94845]
[1721318020904,0.58951,3392.5,3392.0,2.94808]
[1721318021212,0.58951,3392.5,3389.9,0.60793183]
[1721318021213,3.579,3392.1,3389.9,0.60793183]
[1721318021498,2.94915,3390.8,3389.7,0.91191163]
[1721318021697,2.4311,3391.2,3389.5,2.95027]
[1721318021899,5.4311,3391.2,3389.1,2.4606]
[1721318022102,3.0,3391.2,3390.1,2.94975]
[1721318022302,2.4311,3391.8,3390.2,2.94964]
[1721318022454,7.28,3391.9,3390.4,2.2861]
[1721318022881,7.28,3391.9,3391.3,2.94871]
[1721318023094,7.28,3392.9,3391.4,0.294871]
[1721318023313,7.28,3392.9,3390.4,2.89403183]
[1721318023314,0.1103867,3392.8,3390.4,2.89403183]
[1721318023617,2.94791,3392.3,3391.0,2.94898]
[1721318023764,2.94794,3392.2,3391.0,2.94898]
[1721318023962,2.94794,3392.2,3390.9,2.94903]
[1721318024195,7.28,3392.9,3390.7,0.1477146]
[1721318024196,2.94804,3392.1,3390.7,0.1477146]
[1721318024464,7.28,3392.3,3390.8,2.94915]
[1721318025017,2.94806,3392.1,3390.7,0.1477146]
[1721318025297,7.28,3392.3,3391.3,2.94863]
[1721318025496,7.28,3392.3,3390.8,2.94907]
[1721318025497,2.94796,3392.2,3390.8,2.94907]
[1721318025703,2.94796,3392.2,3391.4,0.06948665]
[1721318025861,5.94764,3392.6,3390.7,0.1477146]
[1721318026062,0.11038414,3392.5,3390.8,0.55]
[1721318026300,0.11038414,3392.5,3390.9,0.05895886]
[1721318026512,7.28,3392.7,3391.0,0.92757589]
[1721318026816,7.28,3392.7,3391.6,2.94845]
[1721318026967,7.28,3393.1,3391.7,2.94836]
[1721318027163,0.11039818,3393.0,3391.7,2.94836]
[1721318027509,10.22715,3393.1,3391.8,3.01756071]
[1721318027709,0.11038474,3393.0,3391.9,0.30175607]
[1721318028009,2.94759,3392.6,3392.0,0.06918432]
[1721318028297,3.05804003,3392.5,3392.0,0.06918432]
[1721318028499,2.94759,3392.6,3392.0,0.06918432]
[1721318028500,0.11036004,3392.4,3392.0,0.06918432]
[1721318028685,2.94738,3392.9,3392.0,0.06918432]
[1721318028997,2.89762,3392.6,3391.2,2.94872]
[1721318029162,0.11035781,3392.5,3391.2,2.94872]
[1721318029365,0.11035781,3392.5,3392.1,0.06908693]
[1721318029616,2.94795,3392.2,3391.0,0.37757589]
[1721318029828,0.11035781,3392.1,3390.7,0.1477146]
[1721318030035,0.11035781,3392.0,3390.7,0.1477146]
[1721318030315,0.11035781,3391.9,3390.8,2.94914]
[1721318030526,0.11035781,3391.9,3390.9,0.05896983]
[1721318030731,7.28,3392.4,3391.7,5.8967]
[1721318031018,2.94723,3393.1,3391.9,2.94819]
[1721318031019,3.0,3392.8,3391.9,2.94819]
[1721318031225,0.11039462,3392.7,3391.9,2.94819]
[1721318031394,7.28,3393.0,3392.1,2.94802]
[1721318031596,0.11041161,3392.9,3391.9,3.537844]
[1721318031801,0.11041161,3392.9,3392.1,2.94799]
[1721318032100,0.11041161,3392.9,3391.7,2.94836]
[1721318032423,2.94778,3392.4,3391.3,2.9487]
[1721318032622,2.94811,3392.0,3390.8,2.94915]
[1721318032782,7.28,3392.4,3391.5,2.94853]
[1721318032977,1.21289213,3392.9,3390.7,0.1477146]
[1721318032978,2.94748,3392.8,3391.6,3.243313]
[1721318033205,2.94801,3392.2,3390.7,0.1477146]
[1721318033404,2.94801,3392.2,3391.0,2.9489]
[1721318033405,2.54368232,3392.1,3391.0,2.9489]
[1721318033620,0.11038232,3392.0,3391.0,2.94897]
[1721318033775,3.05851232,3392.0,3390.7,3.0969546]
[1721318033982,0.11038232,3391.9,3390.9,2.94904]
[1721318034318,0.11038232,3391.9,3390.8,2.94914]
[1721318034319,2.94829,3391.8,3390.8,2.94914]
[1721318034484,2.94829,3391.8,3390.7,0.1477146]
[1721318034485,0.11038232,3391.7,3390.7,0.1477146]
[1721318034684,3.05875232,3391.7,3390.7,0.1477146]
[1721318034918,0.11038232,3391.6,3390.7,0.1477146]
[1721318035223,0.11038232,3391.5,3390.7,0.1477146]
[1721318035385,2.94821,3391.9,3390.7,0.1477146]
[1721318035585,0.94334489,3391.8,3390.7,3.0968846]
[1721318035829,0.94334489,3391.8,3390.9,2.94906]
[1721318035830,0.11038989,3391.7,3390.9,2.94906]
[1721318036116,0.832955,3391.8,3390.9,2.94906]
[1721318036318,0.11037163,3391.7,3391.0,0.06969564]
[1721318036530,0.11037163,3391.7,3390.9,2.94906]
[1721318036679,0.11037163,3391.7,3391.1,0.06964241]
[1721318036885,0.11037163,3391.6,3390.7,0.1477146]
[1721318037118,0.11037163,3391.5,3391.2,0.06958919]
[1721318037315,2.94855,3391.5,3390.7,0.1477146]
[1721318037523,3.05898024,3391.4,3391.3,0.06953597]
[1721318037692,3.65973326,3391.4,3390.7,0.1477146]
[1721318037889,0.60087145,3391.8,3390.7,0.1477146]
[1721318037890,0.11035024,3391.3,3390.7,0.1477146]
[1721318038095,2.9482,3391.9,3390.9,2.94906]
[1721318038350,0.11036172,3391.8,3390.9,2.94906]
[1721318038529,0.11036172,3391.8,3390.9,2.949]
[1721318038933,0.11036172,3391.7,3391.0,2.94892]
[1721318039131,0.11036172,3391.7,3390.7,0.1477146]
[1721318039132,0.11036172,3391.6,3391.1,0.589806]
[1721318039322,2.4333,3392.1,3391.5,2.94852]
[1721318039522,7.28,3392.4,3391.1,3.01848241]
[1721318039839,7.28,3392.4,3392.2,2.94792]
[1721318040134,2.4645,3393.2,3392.2,2.94792]
[1721318040135,12.96087145,3393.1,3392.2,2.94792]
[1721318040335,12.96087145,3393.1,3392.4,2.9477]
[1721318040336,0.60087145,3393.1,3392.4,2.9477]
[1721318040540,0.11043418,3393.0,3392.5,2.94767]
[1721318040745,2.4645,3393.2,3392.7,2.9475]
[1721318040893,0.60087145,3393.4,3392.5,3.537229]
[1721318040894,0.11043652,3393.1,3392.6,0.0688444]
[1721318041097,3.54820145,3392.9,3392.8,0.06873805]
[1721318041440,2.94777,3392.4,3391.3,2.94871]
[1721318041744,0.11042982,3392.3,3391.9,2.94813]
[1721318042028,3.27545171,3392.8,3392.0,0.06916352]
[1721318042029,0.60530114,3392.7,3392.0,0.06916352]
[1721318042229,0.71567897,3392.6,3392.0,0.06916352]
[1721318042443,0.71567897,3392.6,3391.0,5.33207]
[1721318042444,0.11037783,3392.5,3391.0,2.3831]
[1721318042618,0.60530114,3392.7,3391.5,2.94853]
[1721318042827,0.11036923,3392.6,3392.2,2.94791]
[1721318042994,10.25280114,3392.8,3392.0,2.94805]
[1721318042995,2.97280114,3392.8,3392.0,2.94805]
[1721318043195,0.1103671,3392.7,3391.8,2.94826]
[1721318043407,0.71566824,3392.7,3391.8,3.243086]
[1721318043603,0.1103671,3392.6,3392.0,2.94805]
[1721318043835,0.60530114,3393.0,3392.2,2.94793]
[1721318044139,0.90795171,3393.1,3392.4,2.9477]
[1721318044140,0.11038618,3392.9,3392.4,2.9477]
[1721318044317,0.60530114,3393.1,3392.1,2.94801]
[1721318044527,0.11039561,3393.0,3392.2,2.94791]
[1721318044743,0.71569675,3393.0,3392.2,0.06905713]
[1721318044944,2.94722,3393.1,3392.2,0.06905713]
[1721318044945,3.66310675,3392.9,3392.2,0.06905713]
[1721318045119,0.1103963,3392.8,3391.8,0.294826]
[1721318045314,0.60530114,3392.9,3392.5,2.94759]
[1721318046256,0.90795171,3393.1,3392.6,0.0688444]
[1721318046257,0.60530114,3392.8,3392.6,0.0688444]
[1721318046452,0.60530114,3392.8,3392.6,3.0164344]